fUSD/lending_fUSD_20250211
["ID","MTS","AMOUNT","RATE_DAILY","PERIOD"]
[352765489,1739298656088,-542.89,0.00016712,2]
[352765490,1739298656098,-500.0,0.00016712,2]
[352765491,1739298656108,-867.18,0.00016712,2]
[352765492,1739298656119,-515.33,0.00016712,2]
[352765493,1739298656129,-500.0,0.00016712,2]
[352765494,1739298656139,-571.89,0.00016712,2]
[352765495,1739298656149,-500.0,0.00016712,2]
[352765496,1739298656159,-500.0,0.00016712,2]
[352765497,1739298656170,-695.7,0.00016712,2]
[352765498,1739298656179,-833.39,0.00016712,2]
[352765499,1739298656189,-549.21,0.00016712,2]
[352765500,1739298656199,-500.0,0.00016712,2]
[352765501,1739298656208,-1540.74,0.00016712,2]
[352765502,1739298656217,-500.0,0.00016712,2]
[352765503,1739298656227,-528.06,0.00016712,2]
[352765504,1739298656236,-151.0,0.00016712,2]
[352765505,1739298656246,-291.76003,0.00016712,2]
[352765506,1739298656255,-691.14,0.00016712,2]
[352765507,1739298656264,-500.0,0.00016712,2]
[352765508,1739298656274,-564.72,0.00016712,2]
[352765509,1739298656283,-601.95,0.00016712,2]
[352765510,1739298656292,-500.0,0.00016712,2]
[352765511,1739298656302,-692.89,0.00016712,2]
[352765512,1739298656311,-500.0,0.00016712,2]
[352765513,1739298656320,-500.0,0.00016712,2]
[352765514,1739298656330,-500.0,0.00016712,2]
[352765515,1739298656339,-500.0,0.00016712,2]
[352765516,1739298656349,-500.0,0.00016712,2]
[352765517,1739298656359,-557.98,0.00016712,2]
[352765518,1739298656369,-710.61,0.00016712,2]
[352765519,1739298656379,-500.0,0.00016712,2]
[352765520,1739298656388,-195.5812204,0.00016712,2]
[352765521,1739298656398,-613.01550939,0.00016712,2]
[352765522,1739298656407,-761.56,0.00016712,2]
[352765523,1739298656420,-500.0,0.00016712,2]
[352765524,1739298656429,-500.0,0.00016712,2]
[352765525,1739298656438,-613.13,0.00016712,2]
[352765526,1739298656452,-500.0,0.00016712,2]
[352765527,1739298656462,-500.0,0.00016712,2]
[352765528,1739298656472,-505.36,0.00016712,2]
[352765529,1739298656482,-500.0,0.00016712,2]
[352765530,1739298656492,-595.39,0.00016712,2]
[352765531,1739298656502,-500.0,0.00016712,2]
[352765532,1739298656512,-500.0,0.00016712,2]
[352765533,1739298656521,-500.0,0.00016712,2]
[352765534,1739298656531,-500.0,0.00016712,2]
[352765535,1739298656540,-500.0,0.00016712,2]
[352765536,1739298656550,-500.0,0.00016712,2]
[352765537,1739298656559,-500.0,0.00016712,2]
[352765538,1739298656570,-1359.95,0.00016712,2]
[352765539,1739298656580,-500.0,0.00016712,2]
[352765540,1739298656590,-902.85,0.00016712,2]
[352765541,1739298656599,-500.0,0.00016712,2]
[352765542,1739298656609,-506.57176297,0.00016712,2]
[352765543,1739298656619,-1237.01,0.00016712,2]
[352765544,1739298656629,-3825.05963615,0.00016715,5]
[352765545,1739298656639,-10772.95263728,0.00016722,5]
[352765546,1739298656649,-3825.05963615,0.00016729,5]
[352765547,1739298656658,-3825.05963615,0.00016744,5]
[352765548,1739298656668,-10772.95263728,0.00016748,5]
[352765549,1739298656678,-190.19867322,0.00016749,2]
[352765550,1739298656687,-10772.95263728,0.00016765,5]
[352765551,1739298656697,-568.49832981,0.00016765,2]
[352765552,1739298656707,-3825.05963615,0.00016769,5]
[352765553,1739298656717,-295.35406194,0.00016786,2]
[352765554,1739298656726,-700.0,0.000168,6]
[352765555,1739298656735,-151.0,0.00016804,2]
[352765556,1739298656744,-151.0,0.00016804,2]
[352765557,1739298656754,-206.620372,0.00016805,2]
[352765558,1739298656764,-206.620372,0.00016805,2]
[352765559,1739298656774,-151.0,0.00016805,2]
[352765560,1739298656783,-20960.46174376,0.00016805,2]
[352765561,1739298656792,-587.09,0.00016813,2]
[352765562,1739298656803,-500.0,0.00016848,2]
[352765563,1739298656813,-652.076007,0.00016848,2]
[352765564,1739298656823,-652.076007,0.00016848,2]
[352765565,1739298656832,-151.0,0.00016848,2]
[352765566,1739298656842,-500.0,0.00016848,2]
[352765567,1739298656851,-1743.0,0.00016849,2]
[352765568,1739298656861,-469.902416,0.00016849,2]
[352765569,1739298656873,-549.183022,0.00016849,2]
[352765570,1739298656883,-500.0,0.00016849,2]
[352765571,1739298656893,-500.0,0.00016849,2]
[352765572,1739298656903,-500.0,0.00016849,2]
[352765573,1739298656912,-241.146062,0.00016849,2]
[352765574,1739298656922,-500.0,0.00016849,2]
[352765575,1739298656932,-500.0,0.00016849,2]
[352765576,1739298656941,-500.0,0.00016849,2]
[352765577,1739298656952,-500.0,0.00016849,2]
[352765578,1739298656962,-500.0,0.00016849,2]
[352765579,1739298656971,-500.0,0.00016849,2]
[352765580,1739298656981,-500.0,0.00016849,2]
[352765581,1739298656991,-722.82,0.00016849,2]
[352765582,1739298657000,-500.0,0.00016849,2]
[352765583,1739298657010,-788.18,0.00016849,2]
[352765584,1739298657019,-500.0,0.00016849,2]
[352765585,1739298657029,-500.0,0.00016849,2]
[352765586,1739298657039,-500.0,0.00016849,2]
[352765587,1739298657048,-519.23446484,0.00016849,2]
[352765588,1739298657058,-500.0,0.00016849,2]
[352765589,1739298657068,-779.81,0.00016849,2]
[352765590,1739298657077,-500.0,0.00016849,2]
[352765591,1739298657087,-500.0,0.00016849,2]
[352765592,1739298657097,-500.0,0.00016849,2]
[352765593,1739298657106,-500.0,0.00016849,2]
[352765594,1739298657116,-500.0,0.00016849,2]
[352765595,1739298657127,-500.0,0.00016849,2]
[352765596,1739298657136,-500.0,0.00016849,2]
[352765597,1739298657146,-500.0,0.00016849,2]
[352765598,1739298657156,-500.0,0.00016849,2]
[352765599,1739298657165,-500.0,0.00016849,2]
[352765600,1739298657175,-500.0,0.00016849,2]
[352765601,1739298657185,-500.0,0.00016849,2]
[352765602,1739298657195,-500.0,0.00016849,2]
[352765603,1739298657205,-500.0,0.00016849,2]
[352765604,1739298657214,-370.42534599,0.00016849,2]
[352765605,1739298657223,-553.98,0.00016849,2]
[352765606,1739298657233,-500.0,0.00016849,2]
[352765607,1739298657243,-2296.07,0.00016849,2]
[352765608,1739298657252,-500.0,0.00016849,2]
[352765609,1739298657261,-500.0,0.00016849,2]
[352765610,1739298657271,-500.0,0.00016849,2]
[352765611,1739298657280,-500.0,0.00016849,2]
[352765612,1739298657290,-491.014014,0.00016849,2]
[352765613,1739298657299,-491.014014,0.00016849,2]
[352765614,1739298657308,-500.0,0.00016849,2]
[352765615,1739298657318,-619.89,0.00016849,2]
[352765616,1739298657327,-500.0,0.00016849,2]
[352765617,1739298657337,-500.0,0.00016849,2]
[352765618,1739298657347,-500.0,0.00016849,2]
[352765619,1739298657356,-500.0,0.00016849,2]
[352765620,1739298657366,-2433.72,0.00016849,2]
[352765621,1739298657378,-500.0,0.00016849,2]
[352765622,1739298657388,-500.0,0.00016849,2]
[352765623,1739298657397,-500.0,0.00016849,2]
[352765624,1739298657407,-500.0,0.00016849,2]
[352765625,1739298657416,-500.0,0.00016849,2]
[352765626,1739298657425,-500.0,0.00016849,2]
[352765627,1739298657435,-500.0,0.00016849,2]
[352765628,1739298657444,-500.0,0.00016849,2]
[352765629,1739298657454,-500.0,0.00016849,2]
[352765630,1739298657466,-500.0,0.00016849,2]
[352765631,1739298657478,-277.89431076,0.00016849,2]
[352765632,1739298657491,-500.0,0.00016849,2]
[352765633,1739298657503,-500.0,0.00016849,2]
[352765634,1739298657515,-500.0,0.00016849,2]
[352765635,1739298657525,-500.0,0.00016849,2]
[352765636,1739298657550,-500.0,0.00016849,2]
[352765637,1739298657565,-500.0,0.00016849,2]
[352765638,1739298657579,-500.0,0.00016849,2]
[352765639,1739298657592,-500.0,0.00016849,2]
[352765640,1739298657606,-500.0,0.00016849,2]
[352765641,1739298657619,-500.0,0.00016849,2]
[352765642,1739298657633,-500.0,0.00016849,2]
[352765643,1739298657648,-500.0,0.00016849,2]
[352765644,1739298657662,-544.88,0.00016849,2]
[352765645,1739298657675,-500.0,0.00016849,2]
[352765646,1739298657688,-500.0,0.00016849,2]
[352765647,1739298657700,-500.0,0.00016849,2]
[352765648,1739298657711,-500.0,0.00016849,2]
[352765649,1739298657723,-500.0,0.00016849,2]
[352765650,1739298657736,-500.0,0.00016849,2]
[352765651,1739298657748,-500.0,0.00016849,2]
[352765652,1739298657760,-500.0,0.00016849,2]
[352765653,1739298657773,-500.0,0.00016849,2]
[352765654,1739298657786,-587.21,0.00016849,2]
[352765655,1739298657799,-500.0,0.00016849,2]
[352765656,1739298657813,-500.0,0.00016849,2]
[352765657,1739298657826,-500.0,0.00016849,2]
[352765658,1739298657839,-500.0,0.00016849,2]
[352765659,1739298657851,-500.0,0.00016849,2]
[352765660,1739298657865,-776.68,0.00016849,2]
[352765661,1739298657882,-332.80457438,0.00016849,2]
[352765662,1739298657894,-151.0,0.00016849,2]
[352765663,1739298657907,-500.0,0.00016849,2]
[352765664,1739298657920,-500.0,0.00016849,2]
[352765665,1739298657933,-500.0,0.00016849,2]
[352765666,1739298657948,-500.0,0.00016849,2]
[352765667,1739298657960,-500.0,0.00016849,2]
[352765668,1739298657973,-570.78,0.00016849,2]
[352765669,1739298657986,-500.0,0.00016849,2]
[352765670,1739298658000,-500.0,0.00016849,2]
[352765671,1739298658013,-783.88,0.00016849,2]
[352765672,1739298658025,-500.0,0.00016849,2]
[352765673,1739298658038,-500.0,0.00016849,2]
[352765674,1739298658048,-500.0,0.00016849,2]
[352765675,1739298658059,-500.0,0.00016849,2]
[352765676,1739298658072,-1508.97,0.00016849,2]
[352765677,1739298658083,-500.0,0.00016849,2]
[352765678,1739298658096,-500.0,0.00016849,2]
[352765679,1739298658109,-500.0,0.00016849,2]
[352765680,1739298658123,-688.16,0.00016849,2]
[352765681,1739298658134,-646.53,0.00016849,2]
[352765682,1739298658145,-500.0,0.00016849,2]
[352765683,1739298658155,-500.0,0.00016849,2]
[352765684,1739298658166,-500.0,0.00016849,2]
[352765685,1739298658179,-928.56,0.00016849,2]
[352765686,1739298658192,-515.55,0.00016849,2]
[352765687,1739298658205,-1282.36,0.00016849,2]
[352765688,1739298658217,-607.49,0.00016849,2]
[352765689,1739298658227,-500.0,0.00016849,2]
[352765690,1739298658238,-500.0,0.00016849,2]
[352765691,1739298658248,-500.0,0.00016849,2]
[352765692,1739298658261,-1647.83,0.00016849,2]
[352765693,1739298658272,-500.0,0.00016849,2]
[352765694,1739298658283,-500.0,0.00016849,2]
[352765695,1739298658294,-500.0,0.00016849,2]
[352765696,1739298658306,-500.0,0.00016849,2]
[352765697,1739298658319,-787.18,0.00016849,2]
[352765698,1739298658331,-500.0,0.00016849,2]
[352765699,1739298658343,-500.0,0.00016849,2]
[352765700,1739298658355,-503.84,0.00016849,2]
[352765701,1739298658370,-500.0,0.00016849,2]
[352765702,1739298658383,-564.67,0.00016849,2]
[352765703,1739298658395,-500.0,0.00016849,2]
[352765704,1739298658407,-802.86,0.00016849,2]
[352765705,1739298658422,-809.1,0.00016849,2]
[352765706,1739298658433,-500.0,0.00016849,2]
[352765707,1739298658445,-589.09,0.00016849,2]
[352765708,1739298658457,-500.0,0.00016849,2]
[352765709,1739298658468,-500.0,0.00016849,2]
[352765710,1739298658481,-500.0,0.00016849,2]
[352765711,1739298658493,-621.49,0.00016849,2]
[352765712,1739298658505,-500.0,0.00016849,2]
[352765713,1739298658517,-500.0,0.00016849,2]
[352765714,1739298658529,-500.0,0.00016849,2]
[352765715,1739298658541,-669.22,0.00016849,2]
[352765716,1739298658554,-500.0,0.00016849,2]
[352765717,1739298658566,-500.0,0.00016849,2]
[352765718,1739298658577,-500.0,0.00016849,2]
[352765719,1739298658589,-750.57,0.00016849,2]
[352765720,1739298658600,-828.95,0.00016849,2]
[352765721,1739298658612,-500.0,0.00016849,2]
[352765722,1739298658623,-773.6,0.00016849,2]
[352765723,1739298658634,-522.31,0.00016849,2]
[352765724,1739298658646,-500.0,0.00016849,2]
[352765725,1739298658656,-1142.31,0.00016849,2]
[352765726,1739298658668,-500.0,0.00016849,2]
[352765727,1739298658680,-500.0,0.00016849,2]
[352765728,1739298658691,-500.0,0.00016849,2]
[352765729,1739298658703,-511.15,0.00016849,2]
[352765730,1739298658715,-500.0,0.00016849,2]
[352765731,1739298658727,-500.0,0.00016849,2]
[352765732,1739298658740,-735.1,0.00016849,2]
[352765733,1739298658751,-500.0,0.00016849,2]
[352765734,1739298658762,-500.0,0.00016849,2]
[352765735,1739298658775,-700.83,0.00016849,2]
[352765736,1739298658786,-574.37,0.00016849,2]
[352765737,1739298658798,-500.0,0.00016849,2]
[352765738,1739298658809,-500.0,0.00016849,2]
[352765739,1739298658820,-573.07,0.00016849,2]
[352765740,1739298658831,-1091.51,0.00016849,2]
[352765741,1739298658842,-1000.0,0.00016849,2]
[352765742,1739298658854,-500.0,0.00016849,2]
[352765743,1739298658866,-500.0,0.00016849,2]
[352765744,1739298658883,-180.96051731,0.00016849,2]
[352765745,1739298658894,-609.52,0.00016849,2]
[352765746,1739298658906,-500.0,0.00016849,2]
[352765747,1739298658918,-542.89,0.00016849,2]
[352765748,1739298658929,-500.0,0.00016849,2]
[352765749,1739298658941,-867.18,0.00016849,2]
[352765750,1739298658954,-515.33,0.00016849,2]
[352765751,1739298658965,-500.0,0.00016849,2]
[352765752,1739298658976,-571.89,0.00016849,2]
[352765753,1739298658986,-500.0,0.00016849,2]
[352765754,1739298658997,-500.0,0.00016849,2]
[352765755,1739298659008,-695.7,0.00016849,2]
[352765756,1739298659020,-833.39,0.00016849,2]
[352765757,1739298659030,-549.21,0.00016849,2]
[352765758,1739298659042,-500.0,0.00016849,2]
[352765759,1739298659053,-1540.74,0.00016849,2]
[352765760,1739298659064,-500.0,0.00016849,2]
[352765761,1739298659075,-528.06,0.00016849,2]
[352765762,1739298659086,-691.14,0.00016849,2]
[352765763,1739298659097,-500.0,0.00016849,2]
[352765764,1739298659109,-564.72,0.00016849,2]
[352765765,1739298659120,-500.0,0.00016849,2]
[352765766,1739298659131,-692.89,0.00016849,2]
[352765767,1739298659143,-500.0,0.00016849,2]
[352765768,1739298659154,-500.0,0.00016849,2]
[352765769,1739298659165,-500.0,0.00016849,2]
[352765770,1739298659176,-508.40417231,0.00016849,2]
[352765771,1739298659187,-500.0,0.00016849,2]
[352765772,1739298659198,-557.98,0.00016849,2]
[352765773,1739298659210,-710.61,0.00016849,2]
[352765774,1739298659221,-500.0,0.00016849,2]
[352765775,1739298659234,-761.56,0.00016849,2]
[352765776,1739298659246,-500.0,0.00016849,2]
[352765777,1739298659257,-500.0,0.00016849,2]
[352765778,1739298659268,-613.13,0.00016849,2]
[352765779,1739298659279,-500.0,0.00016849,2]
[352765780,1739298659290,-500.0,0.00016849,2]
[352765781,1739298659302,-505.36,0.00016849,2]
[352765782,1739298659314,-595.39,0.00016849,2]
[352765783,1739298659325,-500.0,0.00016849,2]
[352765784,1739298659336,-500.0,0.00016849,2]
[352765785,1739298659347,-500.0,0.00016849,2]
[352765786,1739298659358,-500.0,0.00016849,2]
[352765787,1739298659370,-500.0,0.00016849,2]
[352765788,1739298659382,-500.0,0.00016849,2]
[352765789,1739298659393,-1359.95,0.00016849,2]
[352765790,1739298659403,-500.0,0.00016849,2]
[352765791,1739298659414,-902.85,0.00016849,2]
[352765792,1739298659424,-500.0,0.00016849,2]
[352765793,1739298659435,-150.0,0.00016861,2]
[352765794,1739298659446,-2210.0,0.00016878,12]
[352765795,1739298659456,-1100.0,0.000169,6]
[352765796,1739298659468,-110107.75849468,0.000169,2]
[352765797,1739298659480,-1372.07,0.00016922,2]
[352765798,1739298659491,-299.99,0.00016922,4]
[352765799,1739298659501,-170.71,0.00016959,2]
[352765800,1739298659513,-403.31855401,0.00016985,2]
[352765801,1739298659524,-469.902416,0.00016986,2]
[352765802,1739298659534,-549.183022,0.00016986,2]
[352765803,1739298659545,-500.0,0.00016986,2]
[352765804,1739298659556,-500.0,0.00016986,2]
[352765805,1739298659566,-500.0,0.00016986,2]
[352765806,1739298659578,-500.0,0.00016986,2]
[352765807,1739298659588,-500.0,0.00016986,2]
[352765808,1739298659599,-500.0,0.00016986,2]
[352765809,1739298659610,-500.0,0.00016986,2]
[352765810,1739298659622,-500.0,0.00016986,2]
[352765811,1739298659633,-500.0,0.00016986,2]
[352765812,1739298659644,-500.0,0.00016986,2]
[352765813,1739298659655,-722.82,0.00016986,2]
[352765814,1739298659666,-500.0,0.00016986,2]
[352765815,1739298659677,-788.18,0.00016986,2]
[352765816,1739298659688,-500.0,0.00016986,2]
[352765817,1739298659698,-500.0,0.00016986,2]
[352765818,1739298659709,-500.0,0.00016986,2]
[352765819,1739298659722,-779.81,0.00016986,2]
[352765820,1739298659736,-500.0,0.00016986,2]
[352765821,1739298659747,-500.0,0.00016986,2]
[352765822,1739298659758,-500.0,0.00016986,2]
[352765823,1739298659768,-500.0,0.00016986,2]
[352765824,1739298659779,-500.0,0.00016986,2]
[352765825,1739298659789,-500.0,0.00016986,2]
[352765826,1739298659800,-500.0,0.00016986,2]
[352765827,1739298659811,-500.0,0.00016986,2]
[352765828,1739298659821,-408.10972546,0.00016986,2]
[352765829,1739298659831,-500.0,0.00016986,2]
[352765830,1739298659842,-500.0,0.00016986,2]
[352765831,1739298659852,-500.0,0.00016986,2]
[352765832,1739298659863,-500.0,0.00016986,2]
[352765833,1739298659878,-500.0,0.00016986,2]
[352765834,1739298659888,-553.98,0.00016986,2]
[352765835,1739298659899,-500.0,0.00016986,2]
[352765836,1739298659911,-2296.07,0.00016986,2]
[352765837,1739298659921,-500.0,0.00016986,2]
[352765838,1739298659934,-500.0,0.00016986,2]
[352765839,1739298659944,-500.0,0.00016986,2]
[352765840,1739298659958,-500.0,0.00016986,2]
[352765841,1739298659969,-491.014014,0.00016986,2]
[352765842,1739298659980,-491.014014,0.00016986,2]
[352765843,1739298659992,-500.0,0.00016986,2]
[352765844,1739298660003,-619.89,0.00016986,2]
[352765845,1739298660014,-500.0,0.00016986,2]
[352765846,1739298660024,-500.0,0.00016986,2]
[352765847,1739298660035,-500.0,0.00016986,2]
[352765848,1739298660046,-500.0,0.00016986,2]
[352765849,1739298660057,-2433.72,0.00016986,2]
[352765850,1739298660067,-500.0,0.00016986,2]
[352765851,1739298660379,-500.0,0.00016986,2]
[352765852,1739298660412,-500.0,0.00016986,2]
[352765853,1739298660425,-500.0,0.00016986,2]
[352765854,1739298660435,-500.0,0.00016986,2]
[352765855,1739298660444,-500.0,0.00016986,2]
[352765856,1739298660454,-500.0,0.00016986,2]
[352765857,1739298660464,-500.0,0.00016986,2]
[352765858,1739298660473,-500.0,0.00016986,2]
[352765859,1739298660483,-302.05180708,0.00016986,2]
[352765860,1739298660493,-500.0,0.00016986,2]
[352765861,1739298660503,-500.0,0.00016986,2]
[352765862,1739298660512,-170.630765,0.00016986,2]
[352765863,1739298660522,-500.0,0.00016986,2]
[352765864,1739298660532,-500.0,0.00016986,2]
[352765865,1739298660541,-500.0,0.00016986,2]
[352765866,1739298660551,-500.0,0.00016986,2]
[352765867,1739298660561,-500.0,0.00016986,2]
[352765868,1739298660571,-500.0,0.00016986,2]
[352765869,1739298660581,-188.01553282,0.00016986,2]
[352765870,1739298660591,-500.0,0.00016986,2]
[352765871,1739298660600,-500.0,0.00016986,2]
[352765872,1739298660610,-500.0,0.00016986,2]
[352765873,1739298660621,-500.0,0.00016986,2]
[352765874,1739298660630,-544.88,0.00016986,2]
[352765875,1739298660640,-500.0,0.00016986,2]
[352765876,1739298660650,-500.0,0.00016986,2]
[352765877,1739298660659,-453.62044442,0.00016986,2]
[352765878,1739298660669,-500.0,0.00016986,2]
[352765879,1739298660679,-500.0,0.00016986,2]
[352765880,1739298660688,-500.0,0.00016986,2]
[352765881,1739298660698,-587.21,0.00016986,2]
[352765882,1739298660707,-500.0,0.00016986,2]
[352765883,1739298660716,-500.0,0.00016986,2]
[352765884,1739298660726,-500.0,0.00016986,2]
[352765885,1739298660735,-500.0,0.00016986,2]
[352765886,1739298660744,-776.68,0.00016986,2]
[352765887,1739298660754,-500.0,0.00016986,2]
[352765888,1739298660764,-151.0,0.00016986,2]
[352765889,1739298660773,-500.0,0.00016986,2]
[352765890,1739298660783,-500.0,0.00016986,2]
[352765891,1739298660792,-500.0,0.00016986,2]
[352765892,1739298660802,-500.0,0.00016986,2]
[352765893,1739298660811,-500.0,0.00016986,2]
[352765894,1739298660821,-500.0,0.00016986,2]
[352765895,1739298660831,-500.0,0.00016986,2]
[352765896,1739298660840,-783.88,0.00016986,2]
[352765897,1739298660849,-500.0,0.00016986,2]
[352765898,1739298660858,-500.0,0.00016986,2]
[352765899,1739298660870,-500.0,0.00016986,2]
[352765900,1739298660882,-500.0,0.00016986,2]
[352765901,1739298660891,-1508.97,0.00016986,2]
[352765902,1739298660901,-500.0,0.00016986,2]
[352765903,1739298660911,-500.0,0.00016986,2]
[352765904,1739298660923,-500.0,0.00016986,2]
[352765905,1739298660933,-688.16,0.00016986,2]
[352765906,1739298660942,-646.53,0.00016986,2]
[352765907,1739298660954,-500.0,0.00016986,2]
[352765908,1739298660964,-500.0,0.00016986,2]
[352765909,1739298660974,-500.0,0.00016986,2]
[352765910,1739298660984,-928.56,0.00016986,2]
[352765911,1739298660994,-515.55,0.00016986,2]
[352765912,1739298661003,-607.49,0.00016986,2]
[352765913,1739298661013,-1282.36,0.00016986,2]
[352765914,1739298661023,-500.0,0.00016986,2]
[352765915,1739298661032,-500.0,0.00016986,2]
[352765916,1739298661042,-500.0,0.00016986,2]
[352765917,1739298661052,-1647.83,0.00016986,2]
[352765918,1739298661062,-500.0,0.00016986,2]
[352765919,1739298661072,-500.0,0.00016986,2]
[352765920,1739298661082,-500.0,0.00016986,2]
[352765921,1739298661092,-289.1,0.00016986,2]
[352765922,1739298661102,-787.18,0.00016986,2]
[352765923,1739298661111,-500.0,0.00016986,2]
[352765924,1739298661123,-500.0,0.00016986,2]
[352765925,1739298661133,-503.84,0.00016986,2]
[352765926,1739298661142,-500.0,0.00016986,2]
[352765927,1739298661152,-652.076007,0.00016986,2]
[352765928,1739298661161,-564.67,0.00016986,2]
[352765929,1739298661171,-500.0,0.00016986,2]
[352765930,1739298661180,-802.86,0.00016986,2]
[352765931,1739298661190,-652.076007,0.00016986,2]
[352765932,1739298661200,-809.1,0.00016986,2]
[352765933,1739298661210,-500.0,0.00016986,2]
[352765934,1739298661219,-589.09,0.00016986,2]
[352765935,1739298661230,-271.38544609,0.00016986,2]
[352765936,1739298661240,-500.0,0.00016986,2]
[352765937,1739298661250,-621.49,0.00016986,2]
[352765938,1739298661260,-500.0,0.00016986,2]
[352765939,1739298661271,-500.0,0.00016986,2]
[352765940,1739298661282,-500.0,0.00016986,2]
[352765941,1739298661292,-669.22,0.00016986,2]
[352765942,1739298661302,-500.0,0.00016986,2]
[352765943,1739298661315,-500.0,0.00016986,2]
[352765944,1739298661333,-500.0,0.00016986,2]
[352765945,1739298661349,-750.57,0.00016986,2]
[352765946,1739298661359,-828.95,0.00016986,2]
[352765947,1739298661371,-500.0,0.00016986,2]
[352765948,1739298661381,-773.6,0.00016986,2]
[352765949,1739298661391,-522.31,0.00016986,2]
[352765950,1739298661400,-500.0,0.00016986,2]
[352765951,1739298661410,-1142.31,0.00016986,2]
[352765952,1739298661419,-500.0,0.00016986,2]
[352765953,1739298661429,-206.620372,0.00016986,2]
[352765954,1739298661438,-500.0,0.00016986,2]
[352765955,1739298661448,-206.620372,0.00016986,2]
[352765956,1739298661459,-511.15,0.00016986,2]
[352765957,1739298661468,-452.81598551,0.00016986,2]
[352765958,1739298661478,-500.0,0.00016986,2]
[352765959,1739298661488,-735.1,0.00016986,2]
[352765960,1739298661498,-500.0,0.00016986,2]
[352765961,1739298661507,-500.0,0.00016986,2]
[352765962,1739298661517,-700.83,0.00016986,2]
[352765963,1739298661528,-574.37,0.00016986,2]
[352765964,1739298661538,-500.0,0.00016986,2]
[352765965,1739298661547,-500.0,0.00016986,2]
[352765966,1739298661557,-573.07,0.00016986,2]
[352765967,1739298661566,-1091.51,0.00016986,2]
[352765968,1739298661575,-1000.0,0.00016986,2]
[352765969,1739298661584,-321.9677188,0.00016986,2]
[352765970,1739298661593,-500.0,0.00016986,2]
[352765971,1739298661604,-609.52,0.00016986,2]
[352765972,1739298661615,-500.0,0.00016986,2]
[352765973,1739298661627,-542.89,0.00016986,2]
[352765974,1739298661637,-500.0,0.00016986,2]
[352765975,1739298661647,-867.18,0.00016986,2]
[352765976,1739298661656,-515.33,0.00016986,2]
[352765977,1739298661665,-571.89,0.00016986,2]
[352765978,1739298661675,-500.0,0.00016986,2]
[352765979,1739298661684,-500.0,0.00016986,2]
[352765980,1739298661694,-695.7,0.00016986,2]
[352765981,1739298661704,-833.39,0.00016986,2]
[352765982,1739298661713,-549.21,0.00016986,2]
[352765983,1739298661723,-500.0,0.00016986,2]
[352765984,1739298661733,-1540.74,0.00016986,2]
[352765985,1739298661743,-500.0,0.00016986,2]
[352765986,1739298661753,-528.06,0.00016986,2]
[352765987,1739298661763,-151.0,0.00016986,2]
[352765988,1739298661773,-691.14,0.00016986,2]